fUST/lending_fUST_20250623
["ID","MTS","AMOUNT","RATE_DAILY","PERIOD"]
[367049988,1750637442176,-460.0,0.00022749,2]
[367049989,1750637442186,-460.0,0.00022749,2]
[367049990,1750637442195,-523.26055691,0.00022749,2]
[367049991,1750637442204,-460.0,0.00022749,2]
[367049992,1750637442213,-460.0,0.00022749,2]
[367049993,1750637442222,-1297.24,0.00022749,2]
[367049994,1750637442231,-1101.73,0.00022749,2]
[367049995,1750637442241,-1066.84,0.00022749,2]
[367049996,1750637442250,-460.0,0.00022749,2]
[367049997,1750637442258,-460.0,0.00022749,2]
[367049998,1750637442267,-1144.93,0.00022749,2]
[367049999,1750637442282,-460.0,0.00022749,2]
[367050000,1750637442292,-460.0,0.00022749,2]
[367050001,1750637442301,-1818.33,0.00022749,2]
[367050002,1750637442310,-460.0,0.00022749,2]
[367050003,1750637442322,-460.0,0.00022749,2]
[367050004,1750637442331,-1533.29,0.00022749,2]
[367050005,1750637442340,-770.63,0.00022749,2]
[367050006,1750637442352,-460.0,0.00022749,2]
[367050007,1750637442362,-673.05,0.00022749,2]
[367050008,1750637442371,-460.0,0.00022749,2]
[367050009,1750637442381,-460.0,0.00022749,2]
[367050010,1750637442391,-897.13,0.00022749,2]
[367050011,1750637442400,-460.0,0.00022749,2]
[367050012,1750637442410,-466.12,0.00022749,2]
[367050013,1750637442420,-460.0,0.00022749,2]
[367050014,1750637442429,-460.0,0.00022749,2]
[367050015,1750637442439,-460.0,0.00022749,2]
[367050016,1750637442448,-2595.38,0.00022749,2]
[367050017,1750637442458,-518.66,0.00022749,2]
[367050018,1750637442467,-460.0,0.00022749,2]
[367050019,1750637442477,-460.0,0.00022749,2]
[367050020,1750637442487,-262.43580363,0.00022749,2]
[367050021,1750637442496,-460.0,0.00022749,2]
[367050022,1750637442505,-460.0,0.00022749,2]
[367050023,1750637442514,-460.0,0.00022749,2]
[367050024,1750637442524,-460.0,0.00022749,2]
[367050025,1750637442535,-460.0,0.00022749,2]
[367050026,1750637442545,-9781.93,0.00022749,2]
[367050027,1750637442553,-460.0,0.00022749,2]
[367050028,1750637442563,-1422.12,0.00022749,2]
[367050029,1750637442572,-753.67,0.00022749,2]
[367050030,1750637442582,-586.1,0.00022749,2]
[367050031,1750637442592,-460.0,0.00022749,2]
[367050032,1750637442602,-3535.84,0.00022749,2]
[367050033,1750637442611,-460.0,0.00022749,2]
[367050034,1750637442621,-460.0,0.00022749,2]
[367050035,1750637442631,-460.0,0.00022749,2]
[367050036,1750637442641,-1752.13,0.00022749,2]
[367050038,1750637442651,-880.81,0.00022749,2]
[367050040,1750637442661,-462.62,0.00022749,2]
[367050042,1750637442671,-1476.48,0.00022749,2]
[367050044,1750637442681,-460.0,0.00022749,2]
[367050046,1750637442691,-460.0,0.00022749,2]
[367050048,1750637442700,-460.0,0.00022749,2]
[367050050,1750637442710,-460.0,0.00022749,2]
[367050052,1750637442720,-460.0,0.00022749,2]
[367050054,1750637442729,-460.0,0.00022749,2]
[367050056,1750637442738,-460.0,0.00022749,2]
[367050058,1750637442748,-962.0,0.00022749,2]
[367050060,1750637442757,-460.0,0.00022749,2]
[367050062,1750637442767,-495.98,0.00022749,2]
[367050064,1750637442778,-460.0,0.00022749,2]
[367050066,1750637442787,-2554.74,0.00022749,2]
[367050068,1750637442797,-460.0,0.00022749,2]
[367050069,1750637442807,-200.0,0.00022749,10]
[367050070,1750637442817,-200.0,0.00022749,10]
[367050071,1750637442828,-200.0,0.00022749,10]
[367050072,1750637442838,-200.0,0.00022749,10]
[367050073,1750637442848,-200.0,0.00022749,10]
[367050074,1750637442858,-200.0,0.00022749,10]
[367050075,1750637442867,-200.0,0.00022749,10]
[367050077,1750637442877,-200.0,0.00022749,10]
[367050079,1750637442887,-467.31,0.00022749,2]
[367050081,1750637442897,-200.0,0.00022749,10]
[367050083,1750637442906,-200.0,0.00022749,10]
[367050085,1750637442916,-200.0,0.00022749,10]
[367050087,1750637442926,-200.0,0.00022749,10]
[367050089,1750637442935,-200.0,0.00022749,10]
[367050091,1750637442945,-200.0,0.00022749,10]
[367050093,1750637442955,-200.0,0.00022749,10]
[367050095,1750637442966,-1493.87,0.00022749,2]
[367050097,1750637442976,-200.0,0.00022749,10]
[367050099,1750637442986,-200.0,0.00022749,10]
[367050101,1750637442996,-200.0,0.00022749,10]
[367050103,1750637443006,-460.0,0.00022749,2]
[367050105,1750637443016,-200.0,0.00022749,10]
[367050107,1750637443030,-200.0,0.00022749,10]
[367050109,1750637443039,-200.0,0.00022749,10]
[367050111,1750637443049,-500.0,0.00022749,2]
[367050114,1750637443059,-500.0,0.00022749,2]
[367050117,1750637443070,-345.38145839,0.00022749,2]
[367050120,1750637443081,-460.0,0.00022749,2]
[367050122,1750637443091,-460.0,0.00022749,2]
[367050125,1750637443101,-460.0,0.00022749,2]
[367050127,1750637443111,-460.0,0.00022749,2]
[367050131,1750637443122,-460.0,0.00022749,2]
[367050133,1750637443131,-460.0,0.00022749,2]
[367050136,1750637443141,-460.0,0.00022749,2]
[367050139,1750637443151,-460.0,0.00022749,2]
[367050143,1750637443161,-460.0,0.00022749,2]
[367050146,1750637443171,-460.0,0.00022749,2]
[367050149,1750637443182,-547.92,0.00022749,2]
[367050151,1750637443192,-460.0,0.00022749,2]
[367050154,1750637443202,-1021.77,0.00022749,2]
[367050157,1750637443212,-460.0,0.00022749,2]
[367050159,1750637443223,-1378.54,0.00022749,2]
[367050162,1750637443233,-460.0,0.00022749,2]
[367050165,1750637443243,-832.11,0.00022749,2]
[367050169,1750637443253,-460.0,0.00022749,2]
[367050172,1750637443263,-905.63,0.00022749,2]
[367050175,1750637443279,-1101.12,0.00022749,2]
[367050177,1750637443289,-1026.83,0.00022749,2]
[367050179,1750637443300,-460.0,0.00022749,2]
[367050182,1750637443310,-460.0,0.00022749,2]
[367050185,1750637443322,-460.0,0.00022749,2]
[367050187,1750637443332,-3000.0,0.0002275,2]
[367050190,1750637443344,-748.48,0.00022759,2]
[367050192,1750637443353,-276.84243719,0.00022759,2]
[367050194,1750637443365,-460.0,0.00022759,2]
[367050197,1750637443375,-460.0,0.00022759,2]
[367050199,1750637443385,-460.0,0.00022759,2]
[367050201,1750637443395,-460.0,0.00022759,2]
[367050203,1750637443406,-460.0,0.00022759,2]
[367050205,1750637443416,-358.21032067,0.00022759,2]
[367050207,1750637443427,-460.0,0.00022759,2]
[367050209,1750637443437,-460.0,0.00022759,2]
[367050212,1750637443447,-500.0,0.00022759,2]
[367050213,1750637443457,-3870.07,0.00022759,2]
[367050215,1750637443467,-460.0,0.00022759,2]
[367050217,1750637443477,-2527.33,0.00022759,2]
[367050220,1750637443487,-654.15,0.00022759,2]
[367050222,1750637443497,-528.82,0.00022759,2]
[367050225,1750637443507,-2220.26,0.00022759,2]
[367050227,1750637443517,-460.0,0.00022759,2]
[367050230,1750637443530,-803.4,0.00022759,2]
[367050232,1750637443539,-368.15526215,0.00022759,2]
[367050235,1750637443549,-959.61,0.00022759,2]
[367050238,1750637443559,-1438.75,0.00022759,2]
[367050240,1750637443568,-500.0,0.00022759,2]
[367050243,1750637443578,-3602.15,0.00022759,2]
[367050246,1750637443587,-500.0,0.00022759,2]
[367050248,1750637443597,-558.24,0.00022759,2]
[367050250,1750637443606,-1537.96,0.00022759,2]
[367050253,1750637443616,-460.0,0.00022759,2]
[367050256,1750637443626,-3000.0,0.0002276,2]
[367050260,1750637443636,-3300.0,0.0002277,2]
[367050263,1750637443656,-500.0,0.00022868,2]
[367050266,1750637443666,-500.0,0.00022868,2]
[367050268,1750637443675,-178.01387089,0.000229,2]
[367050270,1750637443685,-1188.94039809,0.000229,8]
[367050271,1750637443695,-5755.68520376,0.00022933,2]
[367050272,1750637443705,-500.0,0.00022956,2]
[367050273,1750637443715,-500.0,0.00022956,2]
[367050274,1750637443725,-500.0,0.00022956,2]
[367050275,1750637443735,-500.0,0.00022956,2]
[367050276,1750637443744,-500.0,0.00022956,2]
[367050277,1750637443754,-500.0,0.00022974,2]
[367050278,1750637443764,-500.0,0.00022974,2]
[367050279,1750637443774,-460.0,0.00023013,2]
[367050280,1750637443787,-1232.79,0.00023013,2]
[367050281,1750637443797,-460.0,0.00023013,2]
[367050282,1750637443806,-460.0,0.00023013,2]
[367050283,1750637443816,-460.0,0.00023013,2]
[367050284,1750637443824,-460.0,0.00023013,2]
[367050285,1750637443834,-460.0,0.00023013,2]
[367050286,1750637443843,-1164.8,0.00023013,2]
[367050287,1750637443852,-460.0,0.00023013,2]
[367050288,1750637443861,-460.0,0.00023013,2]
[367050289,1750637443871,-460.0,0.00023013,2]
[367050290,1750637443880,-436.49857086,0.00023013,2]
[367050291,1750637443890,-460.0,0.00023013,2]
[367050292,1750637443899,-521.29,0.00023013,2]
[367050293,1750637443909,-460.0,0.00023013,2]
[367050294,1750637443918,-460.0,0.00023013,2]
[367050295,1750637443928,-460.0,0.00023013,2]
[367050296,1750637443937,-460.0,0.00023013,2]
[367050297,1750637443946,-722.34,0.00023013,2]
[367050298,1750637443956,-465.64973267,0.00023013,2]
[367050299,1750637443965,-460.0,0.00023013,2]
[367050300,1750637443974,-460.0,0.00023013,2]
[367050301,1750637443984,-550.59,0.00023013,2]
[367050302,1750637443993,-307.33699819,0.00023013,2]
[367050303,1750637444002,-460.0,0.00023013,2]
[367050304,1750637444012,-460.0,0.00023013,2]
[367050305,1750637444021,-500.0,0.00023013,2]
[367050306,1750637444032,-460.0,0.00023013,2]
[367050307,1750637444041,-460.0,0.00023013,2]
[367050308,1750637444051,-543.77,0.00023013,2]
[367050309,1750637444060,-460.0,0.00023013,2]
[367050310,1750637444070,-460.0,0.00023013,2]
[367050311,1750637444080,-460.0,0.00023013,2]
[367050312,1750637444089,-460.0,0.00023013,2]
[367050313,1750637444098,-6734.28,0.00023013,2]
[367050314,1750637444107,-460.0,0.00023013,2]
[367050315,1750637444116,-460.0,0.00023013,2]
[367050316,1750637444125,-6501.89,0.00023013,2]
[367050317,1750637444134,-2195.08,0.00023013,2]
[367050318,1750637444144,-502.89,0.00023013,2]
[367050319,1750637444153,-1416.17,0.00023013,2]
[367050320,1750637444162,-807.08,0.00023013,2]
[367050321,1750637444333,-460.0,0.00023013,2]
[367050322,1750637444343,-460.0,0.00023013,2]
[367050323,1750637444354,-872.07,0.00023013,2]
[367050324,1750637444364,-471.07,0.00023013,2]
[367050325,1750637444374,-555.51,0.00023013,2]
[367050326,1750637444383,-5866.52,0.00023013,2]
[367050327,1750637444393,-496.59,0.00023013,2]
[367050328,1750637444403,-4198.34,0.00023013,2]
[367050329,1750637444412,-460.0,0.00023013,2]
[367050330,1750637444421,-460.0,0.00023013,2]
[367050331,1750637444431,-460.0,0.00023013,2]
[367050332,1750637444441,-689.73,0.00023013,2]
[367050333,1750637444450,-7146.33,0.00023013,2]
[367050334,1750637444460,-8131.65,0.00023013,2]
[367050335,1750637444470,-1213.54,0.00023013,2]
[367050336,1750637444479,-1764.07,0.00023013,2]
[367050337,1750637444488,-460.0,0.00023013,2]
[367050338,1750637444497,-460.0,0.00023013,2]
[367050339,1750637444507,-460.0,0.00023013,2]
[367050340,1750637444516,-460.0,0.00023013,2]
[367050341,1750637444527,-3247.53,0.00023013,2]
[367050342,1750637444536,-546.11,0.00023013,2]
[367050343,1750637444545,-1268.62,0.00023013,2]
[367050344,1750637444554,-460.0,0.00023013,2]
[367050345,1750637444563,-460.0,0.00023013,2]
[367050346,1750637444572,-460.0,0.00023023,2]
[367050347,1750637444583,-460.0,0.00023023,2]
[367050348,1750637444593,-768.43,0.00023023,2]
[367050349,1750637444604,-460.0,0.00023023,2]
[367050350,1750637444614,-460.0,0.00023023,2]
[367050351,1750637444624,-460.0,0.00023023,2]
[367050352,1750637444636,-460.0,0.00023023,2]
[367050353,1750637444646,-460.0,0.00023023,2]
[367050354,1750637444657,-277.05826503,0.00023023,2]
[367050355,1750637444668,-460.0,0.00023023,2]
[367050356,1750637444678,-460.0,0.00023023,2]
[367050357,1750637444688,-424.4562788,0.00023023,2]
[367050358,1750637444700,-460.0,0.00023023,2]
[367050359,1750637444710,-460.0,0.00023023,2]
[367050360,1750637444720,-460.0,0.00023023,2]
[367050361,1750637444732,-460.0,0.00023023,2]
[367050362,1750637444742,-460.0,0.00023023,2]
[367050363,1750637444752,-224.98999641,0.00023023,2]
[367050364,1750637444763,-460.0,0.00023023,2]
[367050365,1750637444772,-1549.61,0.00023023,2]
[367050366,1750637444783,-460.0,0.00023023,2]
[367050367,1750637444793,-460.0,0.00023023,2]
[367050368,1750637444803,-460.0,0.00023023,2]
[367050369,1750637444815,-460.0,0.00023023,2]
[367050370,1750637444826,-460.0,0.00023023,2]
[367050371,1750637444836,-460.0,0.00023023,2]
[367050372,1750637444846,-460.0,0.00023023,2]
[367050373,1750637444856,-460.0,0.00023023,2]
[367050374,1750637444866,-460.0,0.00023023,2]
[367050375,1750637444877,-460.0,0.00023023,2]
[367050376,1750637444887,-460.0,0.00023023,2]
[367050377,1750637444898,-460.0,0.00023023,2]
[367050378,1750637444907,-460.0,0.00023023,2]
[367050379,1750637444917,-172.3810877,0.00023023,2]
[367050380,1750637444927,-460.0,0.00023023,2]
[367050381,1750637444936,-460.0,0.00023023,2]
[367050382,1750637444946,-460.0,0.00023023,2]
[367050383,1750637444955,-460.0,0.00023023,2]
[367050384,1750637444965,-1297.24,0.00023023,2]
[367050385,1750637444975,-1101.73,0.00023023,2]
[367050386,1750637444984,-1066.84,0.00023023,2]
[367050387,1750637444994,-460.0,0.00023023,2]
[367050388,1750637445004,-304.96315966,0.00023023,2]
[367050389,1750637445014,-1144.93,0.00023023,2]
[367050390,1750637445023,-460.0,0.00023023,2]
[367050391,1750637445037,-460.0,0.00023023,2]
[367050392,1750637445046,-1818.33,0.00023023,2]
[367050393,1750637445056,-443.01279979,0.00023023,2]
[367050394,1750637445066,-460.0,0.00023023,2]
[367050395,1750637445075,-1533.29,0.00023023,2]
[367050396,1750637445085,-770.63,0.00023023,2]
[367050397,1750637445095,-460.0,0.00023023,2]
[367050398,1750637445104,-673.05,0.00023023,2]
[367050399,1750637445113,-460.0,0.00023023,2]
[367050400,1750637445123,-460.0,0.00023023,2]
[367050401,1750637445132,-897.13,0.00023023,2]
[367050402,1750637445142,-249.81329423,0.00023023,2]
[367050403,1750637445152,-466.12,0.00023023,2]
[367050404,1750637445161,-460.0,0.00023023,2]
[367050405,1750637445171,-460.0,0.00023023,2]
[367050406,1750637445181,-460.0,0.00023023,2]
[367050407,1750637445191,-2595.38,0.00023023,2]
[367050408,1750637445202,-518.66,0.00023023,2]
[367050409,1750637445212,-460.0,0.00023023,2]
[367050410,1750637445221,-460.0,0.00023023,2]
[367050411,1750637445230,-435.24141904,0.00023023,2]
[367050412,1750637445240,-460.0,0.00023023,2]
[367050413,1750637445250,-460.0,0.00023023,2]
[367050414,1750637445259,-460.0,0.00023023,2]
[367050415,1750637445269,-460.0,0.00023023,2]
[367050416,1750637445286,-9781.93,0.00023023,2]
[367050417,1750637445297,-753.67,0.00023023,2]
[367050418,1750637445307,-1422.12,0.00023023,2]
[367050419,1750637445319,-586.1,0.00023023,2]
[367050420,1750637445333,-460.0,0.00023023,2]
[367050421,1750637445343,-3535.84,0.00023023,2]
[367050422,1750637445353,-460.0,0.00023023,2]
[367050423,1750637445371,-460.0,0.00023023,2]
[367050424,1750637445381,-460.0,0.00023023,2]
[367050425,1750637445391,-1752.13,0.00023023,2]
[367050426,1750637445400,-880.81,0.00023023,2]
[367050427,1750637445410,-462.62,0.00023023,2]
[367050428,1750637445420,-1476.48,0.00023023,2]
[367050429,1750637445430,-460.0,0.00023023,2]
[367050430,1750637445440,-460.0,0.00023023,2]
[367050431,1750637445450,-460.0,0.00023023,2]
[367050432,1750637445460,-460.0,0.00023023,2]
[367050433,1750637445469,-460.0,0.00023023,2]
[367050434,1750637445479,-460.0,0.00023023,2]
[367050435,1750637445488,-460.0,0.00023023,2]
[367050436,1750637445498,-962.0,0.00023023,2]
[367050437,1750637445509,-460.0,0.00023023,2]
[367050438,1750637445518,-460.0,0.00023023,2]
[367050439,1750637445530,-2554.74,0.00023023,2]
[367050440,1750637445539,-439.10460662,0.00023023,2]
[367050441,1750637445549,-467.31,0.00023023,2]
[367050442,1750637445558,-1493.87,0.00023023,2]
[367050443,1750637445568,-460.0,0.00023023,2]
[367050444,1750637445578,-460.0,0.00023023,2]
[367050445,1750637445588,-460.0,0.00023023,2]
[367050446,1750637445598,-460.0,0.00023023,2]
[367050447,1750637445607,-460.0,0.00023023,2]
[367050448,1750637445617,-460.0,0.00023023,2]
[367050449,1750637445626,-460.0,0.00023023,2]
[367050450,1750637445635,-460.0,0.00023023,2]
[367050451,1750637445644,-460.0,0.00023023,2]
[367050452,1750637445654,-460.0,0.00023023,2]
[367050453,1750637445664,-460.0,0.00023023,2]
[367050454,1750637445674,-547.92,0.00023023,2]
[367050455,1750637445683,-460.0,0.00023023,2]
[367050456,1750637445693,-1021.77,0.00023023,2]
[367050457,1750637445703,-460.0,0.00023023,2]
[367050458,1750637445713,-1378.54,0.00023023,2]
[367050460,1750637445723,-460.0,0.00023023,2]
[367050461,1750637445732,-832.11,0.00023023,2]
[367050463,1750637445742,-460.0,0.00023023,2]
[367050465,1750637445752,-905.63,0.00023023,2]
[367050466,1750637445761,-1101.12,0.00023023,2]
[367050468,1750637445770,-1026.83,0.00023023,2]
[367050469,1750637445780,-460.0,0.00023023,2]
[367050471,1750637445789,-460.0,0.00023023,2]
[367050473,1750637445798,-460.0,0.00023023,2]
[367050475,1750637445808,-748.48,0.00023033,2]
[367050476,1750637445817,-460.0,0.00023033,2]
[367050478,1750637445827,-460.0,0.00023033,2]
[367050480,1750637445837,-460.0,0.00023033,2]
[367050481,1750637445846,-460.0,0.00023033,2]
[367050483,1750637445856,-460.0,0.00023033,2]
[367050484,1750637445865,-460.0,0.00023033,2]
[367050486,1750637445875,-460.0,0.00023033,2]
[367050487,1750637445884,-3870.07,0.00023033,2]
[367050488,1750637445893,-460.0,0.00023033,2]
[367050489,1750637445903,-2527.33,0.00023033,2]
[367050490,1750637445914,-654.15,0.00023033,2]
[367050491,1750637445923,-528.82,0.00023033,2]
[367050492,1750637445933,-2220.26,0.00023033,2]
[367050493,1750637445942,-460.0,0.00023033,2]
[367050494,1750637445952,-803.4,0.00023033,2]
[367050495,1750637445961,-959.61,0.00023033,2]
[367050496,1750637445970,-1438.75,0.00023033,2]
[367050497,1750637445980,-3602.15,0.00023033,2]
[367050498,1750637445990,-558.24,0.00023033,2]
[367050499,1750637445999,-1537.96,0.00023033,2]
[367050500,1750637446009,-460.0,0.00023033,2]
[367050501,1750637446019,-1188.94039784,0.00023038,8]
[367050502,1750637446029,-6615.22,0.000231,7]
[367050503,1750637446038,-12551.52821599,0.000231,7]
[367050504,1750637446048,-500.0,0.00023135,2]
[367050505,1750637446057,-500.0,0.00023135,2]
[367050506,1750637446067,-500.0,0.00023135,2]
[367050507,1750637446076,-160.0,0.00023169,2]
[367050508,1750637446085,-1188.94039784,0.00023176,8]
[367050509,1750637446096,-500.0,0.00023187,2]
[367050510,1750637446105,-500.0,0.00023187,2]
[367050511,1750637446114,-500.0,0.00023187,2]
[367050512,1750637446124,-500.0,0.00023187,2]
[367050513,1750637446133,-460.0,0.00023188,2]
[367050514,1750637446142,-436.95423867,0.00023188,2]
[367050515,1750637446152,-460.0,0.00023188,2]
[367050516,1750637446162,-460.0,0.00023188,2]
[367050517,1750637446172,-460.0,0.00023188,2]
[367050518,1750637446181,-460.0,0.00023188,2]
[367050519,1750637446190,-460.0,0.00023188,2]
[367050520,1750637446200,-460.0,0.00023188,2]
[367050521,1750637446209,-556.07,0.00023188,2]
[367050522,1750637446219,-533.34,0.00023188,2]
[367050523,1750637446228,-460.0,0.00023188,2]
[367050524,1750637446238,-1133.08,0.00023188,2]
[367050525,1750637446248,-460.0,0.00023188,2]
[367050526,1750637446257,-1672.79,0.00023188,2]
[367050527,1750637446266,-798.72,0.00023188,2]
[367050528,1750637446276,-1372.33,0.00023188,2]
[367050529,1750637446289,-460.0,0.00023188,2]
[367050530,1750637446299,-937.43,0.00023188,2]
[367050531,1750637446309,-460.0,0.00023188,2]
[367050532,1750637446319,-617.02,0.00023188,2]
[367050533,1750637446329,-917.32,0.00023188,2]
[367050534,1750637446339,-500.0,0.00023188,2]
[367050535,1750637446349,-480.44,0.00023188,2]
[367050536,1750637446359,-460.0,0.00023188,2]
[367050537,1750637446369,-460.0,0.00023188,2]
[367050538,1750637446379,-497.94707974,0.00023188,2]
[367050539,1750637446388,-653.73,0.00023188,2]
[367050540,1750637446398,-976.01,0.00023188,2]
[367050541,1750637446407,-2964.82,0.00023188,2]
[367050542,1750637446417,-1471.52,0.00023188,2]
[367050543,1750637446428,-2895.92,0.00023188,2]
[367050544,1750637446438,-460.0,0.00023188,2]
[367050545,1750637446447,-524.48,0.00023188,2]
[367050546,1750637446457,-698.89,0.00023188,2]
[367050547,1750637446467,-1948.56,0.00023188,2]
[367050548,1750637446476,-1138.12,0.00023188,2]
[367050549,1750637446486,-460.0,0.00023188,2]
[367050550,1750637446495,-1914.45,0.00023188,2]
[367050551,1750637446505,-460.0,0.00023188,2]
[367050552,1750637446515,-1643.76,0.00023188,2]
[367050553,1750637446525,-460.0,0.00023188,2]
[367050554,1750637446536,-460.0,0.00023188,2]
[367050555,1750637446546,-460.0,0.00023188,2]
[367050556,1750637446556,-460.0,0.00023188,2]
[367050557,1750637446565,-1694.11,0.00023188,2]
[367050558,1750637446575,-571.14,0.00023188,2]
[367050559,1750637446585,-460.0,0.00023188,2]
[367050560,1750637446595,-881.66,0.00023188,2]
[367050561,1750637446604,-660.42,0.00023188,2]
[367050562,1750637446614,-466.98,0.00023188,2]
[367050563,1750637446624,-460.0,0.00023188,2]
[367050564,1750637446633,-460.0,0.00023188,2]
[367050565,1750637446643,-697.87,0.00023188,2]
[367050566,1750637446653,-1983.3,0.00023188,2]
[367050567,1750637446663,-460.0,0.00023188,2]
[367050568,1750637446673,-4571.03,0.00023188,2]
[367050569,1750637446682,-2619.82,0.00023188,2]
[367050570,1750637446692,-460.0,0.00023188,2]
[367050571,1750637446702,-460.0,0.00023188,2]
[367050572,1750637446713,-460.0,0.00023188,2]
[367050573,1750637446723,-1293.62,0.00023188,2]
[367050574,1750637446733,-460.0,0.00023188,2]
[367050575,1750637446743,-460.0,0.00023188,2]
[367050576,1750637446752,-460.0,0.00023188,2]
[367050577,1750637446762,-479.41,0.00023188,2]
[367050578,1750637446772,-579.13,0.00023188,2]
[367050579,1750637446782,-624.51,0.00023188,2]
[367050580,1750637446791,-460.0,0.00023188,2]
[367050581,1750637446801,-460.0,0.00023188,2]
[367050582,1750637446810,-460.0,0.00023188,2]
[367050583,1750637446819,-460.0,0.00023188,2]
[367050584,1750637446828,-460.0,0.00023188,2]
[367050585,1750637446837,-460.0,0.00023188,2]
[367050586,1750637446847,-460.0,0.00023188,2]
[367050587,1750637446856,-460.0,0.00023188,2]
[367050588,1750637446866,-502.9,0.00023188,2]
[367050589,1750637446875,-999.65,0.00023188,2]
[367050590,1750637446885,-500.0,0.00023197,7]
[367050591,1750637446894,-500.0,0.00023197,2]
[367050592,1750637446904,-543.21913824,0.00023197,2]
[367050593,1750637446913,-500.0,0.00023197,2]
[367050594,1750637446923,-500.0,0.00023197,2]
[367050595,1750637446932,-460.0,0.00023198,2]
[367050596,1750637446942,-432.48975922,0.00023198,2]
[367050597,1750637446951,-705.89,0.00023198,2]
[367050598,1750637446960,-900.77,0.00023198,2]
[367050599,1750637446970,-500.0,0.00023198,2]
[367050600,1750637446979,-500.0,0.00023198,2]
[367050601,1750637446989,-170.91801992,0.00023198,2]
[367050602,1750637446998,-460.0,0.00023198,2]
[367050603,1750637447007,-1080.51,0.00023198,2]
[367050604,1750637447016,-513.57,0.00023198,2]
[367050605,1750637447026,-2677.0,0.00023198,2]
[367050606,1750637447036,-3180.53,0.00023198,2]
[367050607,1750637447047,-1891.06,0.00023198,2]
[367050608,1750637447056,-4011.22,0.00023198,2]
[367050609,1750637447066,-500.0,0.00023198,2]
[367050610,1750637447075,-500.0,0.00023198,2]
[367050611,1750637447084,-500.0,0.00023198,2]
[367050612,1750637447094,-500.0,0.00023198,2]
[367050613,1750637447104,-168.38652834,0.00023198,2]
[367050614,1750637447113,-2166.25,0.00023198,2]
[367050615,1750637447122,-401.26617227,0.00023198,2]
[367050616,1750637447132,-500.0,0.00023199,2]
[367050617,1750637447142,-2278.5,0.00023199,2]
[367050618,1750637447151,-554.76,0.00023199,2]
[367050619,1750637447161,-2105.66,0.00023199,2]
[367050620,1750637447171,-1432.05,0.00023199,2]
[367050621,1750637447181,-460.0,0.00023199,2]
[367050622,1750637447190,-8158.79,0.00023199,2]
[367050623,1750637447200,-524.02598587,0.00023199,10]
[367050624,1750637447210,-460.0,0.00023199,2]
[367050625,1750637447219,-404.62798394,0.00023199,2]
[367050626,1750637447230,-3173.64,0.00023199,2]
[367050627,1750637447239,-1876.21,0.00023199,2]
[367050628,1750637447413,-463.47,0.00023199,2]
[367050629,1750637447423,-13139.8,0.00023199,2]
[367050630,1750637447434,-460.0,0.00023199,2]